[Event "3rd BSSZ-Aranytiz GM 2019"]
[Site "Budapest"]
[Date "2019.08.21"]
[Round "5.2"]
[White "Horvath, Dominik"]
[Black "Csonka, Balazs"]
[Result "1/2-1/2"]
[ECO "A18"]
[WhiteElo "2425"]
[BlackElo "2472"]
[Annotator "ChessBase"]
[PlyCount "44"]
[EventDate "2019.08.16"]
[EventType "tourn"]
[EventCountry "HUN"]
[SourceTitle "playchess.com"]
[Source "ChessBase"]
[SourceQuality "1"]
[TimeControl "40/5400+30:1800+30"]

1. c4 {[%emt 0:00:01]} Nf6 {[%emt 0:00:15]} 2. Nc3 {[%emt 0:00:38]} e6 {[%emt 0:00:07]} 3. e4 {[%emt 0:00:06]} d5 {[%emt 0:00:07]} 4. cxd5 {[%emt 0:00:04]} exd5 {[%emt 0:00:06]} 5. e5 {[%emt 0:00:04]} Ne4 {[%emt 0:00:10]} 6. Nf3 {[%emt 0:00:05]} Bf5 {[%emt 0:00:11]} 7. d3 {[%emt 0:00:06]} Nxc3 {[%emt 0:00:06]} 8. bxc3 {[%emt 0:00:02]} c5 {[%emt 0:00:09]} 9. d4 {[%emt 0:00:05]} Nc6 {[%emt 0:05:41]} 10. Bd3 {[%emt 0:00:17]} Bxd3 {[%emt 0:00:10]} 11. Qxd3 {[%emt 0:00:04]} cxd4 {[%emt 0:00:09]} 12. Nxd4 {[%emt 0:00:05]} Nxd4 {[%emt 0:00:08]} 13. cxd4 {[%emt 0:00:05]} Bb4+ {[%emt 0:00:06]} 14. Ke2 {[%emt 0:03:53]} O-O {[%emt 0:00:28]} 15. Rb1 {[%emt 0:01:12]} Ba5 {[%emt 0:00:15]} 16. Ba3 {[%emt 0:06:21]} Re8 {[%emt 0:00:59]} 17. Rxb7 {[%emt 0:01:15]} Qc8 {[%emt 0:00:10]} 18. Rb5 {[%emt 0:08:16]} Qg4+ {[%emt 0:01:11]} 19. Kf1 {[%emt 0:00:03]} Bb6 {[%emt 0:00:08]} 20. f3 {[%emt 0:07:10]} Qxd4 {[%emt 0:08:00]} 21. Qxd4 {[%emt 0:00:08]} Bxd4 {[%emt 0:00:08]} 22. Rxd5 {[%emt 0:06:29]} Bxe5 {[%emt 0:02:32]} 1/2-1/2

[Event "3rd BSSZ-Aranytiz GM 2019"]
[Site "Budapest"]
[Date "2019.08.21"]
[Round "5.3"]
[White "Aczel, Gergely"]
[Black "Akshat, Khamparia"]
[Result "1-0"]
[ECO "E10"]
[WhiteElo "2538"]
[BlackElo "2393"]
[Annotator "ChessBase"]
[PlyCount "139"]
[EventDate "2019.08.16"]
[EventType "tourn"]
[EventCountry "HUN"]
[SourceTitle "playchess.com"]
[Source "ChessBase"]
[SourceQuality "1"]
[TimeControl "40/5400+30:1800+30"]

1. d4 {[%emt 0:00:03]} Nf6 {[%emt 0:00:55]} 2. c4 {[%emt 0:00:06]} e6 {[%emt 0:03:12]} 3. Nf3 {[%emt 0:01:09]} c5 {[%emt 0:00:28]} 4. d5 {[%emt 0:00:02]} exd5 {[%emt 0:03:03]} 5. cxd5 {[%emt 0:00:08]} Bd6 {[%emt 0:00:22]} 6. Nc3 {[%emt 0:00:04]} Bc7 {[%emt 0:00:32]} 7. d6 {[%emt 0:00:05]} Ba5 {[%emt 0:06:07]} 8. Bg5 {[%emt 0:00:19]} h6 {[%emt 0:02:42]} 9. Bh4 {[%emt 0:32:56]} Qb6 {[%emt 0:04:42]} 10. Rb1 {[%emt 0:00:41]} Ne4 {[%emt 0:01:10]} 11. Qd3 {[%emt 0:03:44]} f5 {[%emt 0:06:15]} 12. Nd2 Qxd6 13. Ndxe4 {[%emt 0:27:14]} Qxd3 {[%emt 0:00:40]} 14. exd3 {[%emt 0:00:52]} fxe4 {[%emt 0:00:06]} 15. dxe4 {[%emt 0:00:00]} Nc6 {[%emt 0:05:24]} 16. Bc4 {[%emt 0:03:08]} b5 {[%emt 0:10:02]} 17. Bxb5 {[%emt 0:00:56]} Rb8 {[%emt 0:00:16]} 18. O-O {[%emt 0:04:26]} Nd4 19. Bd3 Kf7 {[%emt 0:12:11]} 20. Bg3 {[%emt 0:01:54]} Rb4 {[%emt 0:00:46]} 21. a3 {[%emt 0:04:48]} Rb7 {[%emt 0:00:55]} 22. Nd5 {[%emt 0:10:24]} Nb3 {[%emt 0:01:44]} 23. Rfd1 {[%emt 0:01:42]} Re8 {[%emt 0:00:25]} 24. Bf4 {[%emt 0:00:30]} g5 {[%emt 0:00:30]} 25. Be3 {[%emt 0:01:11]} d6 {[%emt 0:02:26]} 26. f3 {[%emt 0:00:02]} Be6 {[%emt 0:00:30]} 27. Ba6 {[%emt 0:00:05]} Rbb8 {[%emt 0:01:40]} 28. Rd3 {[%emt 0:02:28]} Bd8 {[%emt 0:01:22]} 29. Bc4 {[%emt 0:00:30]} Na5 30. Ba2 {[%emt 0:00:00]} c4 {[%emt 0:09:43]} 31. Rdd1 Rb7 {[%emt 0:00:56]} 32. Nb4 {[%emt 0:00:56]} Be7 {[%emt 0:00:51]} 33. Rbc1 {[%emt 0:01:15]} Rc8 {[%emt 0:01:36]} 34. Bd4 {[%emt 0:02:24]} Bf8 {[%emt 0:05:31]} 35. Kf2 {[%emt 0:00:19]} Rbc7 {[%emt 0:01:47]} 36. Rc3 {[%emt 0:00:55]} Bd7 {[%emt 0:06:33]} 37. Rdc1 {[%emt 0:00:45]} Ba4 {[%emt 0:00:29]} 38. Nd5 {[%emt 0:00:35]} Rb7 {[%emt 0:00:16]} 39. Nb4 {[%emt 0:00:43]} Rbc7 {[%emt 0:02:43]} 40. Nd5 {[%emt 0:00:00]} Rc6 {[%emt 0:00:00]} 41. Re3 {[%emt 0:13:09]} Bb3 {[%emt 0:06:16]} 42. Bb1 {[%emt 0:03:46]} Nb7 {[%emt 0:00:57]} 43. Nb4 {[%emt 0:06:37]} R6c7 {[%emt 0:00:06]} 44. Bc2 {[%emt 0:02:33]} Nc5 {[%emt 0:01:37]} 45. Bxc5 {[%emt 0:01:31]} dxc5 {[%emt 0:00:07]} 46. Nd5 {[%emt 0:00:25]} Rb7 {[%emt 0:00:28]} 47. e5 {[%emt 0:02:53]} Ke6 {[%emt 0:01:15]} 48. Nc3 {[%emt 0:00:28]} Rd7 {[%emt 0:05:18]} 49. Re2 {[%emt 0:00:01]} Bg7 {[%emt 0:00:48]} 50. g3 {[%emt 0:02:06]} a6 {[%emt 0:05:16]} 51. Bg6 {[%emt 0:00:13]} Rd4 {[%emt 0:00:41]} 52. Rce1 {[%emt 0:00:58]} Rf8 {[%emt 0:01:21]} 53. Kg2 {[%emt 0:00:05]} Ke7 {[%emt 0:01:54]} 54. Rf1 {[%emt 0:00:23]} Ke6 {[%emt 0:02:22]} 55. Bh5 {[%emt 0:00:01]} Ke7 {[%emt 0:00:21]} 56. Rfe1 {[%emt 0:00:44]} Ke6 {[%emt 0:00:28]} 57. Bg4+ {[%emt 0:01:39]} Ke7 {[%emt 0:00:01]} 58. h4 {[%emt 0:00:38]} gxh4 {[%emt 0:02:39]} 59. gxh4 {[%emt 0:00:00]} h5 {[%emt 0:01:54]} 60. Bxh5 {[%emt 0:00:11]} Rh8 {[%emt 0:00:03]} 61. Bg4 {[%emt 0:00:29]} Rxh4 {[%emt 0:00:10]} 62. Ne4 {[%emt 0:02:07]} Bd1 {[%emt 0:02:46]} 63. Rd2 {[%emt 0:00:10]} Ba4 {[%emt 0:02:26]} 64. Rde2 {[%emt 0:00:51]} Bd1 {[%emt 0:01:49]} 65. Rf2 {[%emt 0:00:42]} Rxg4+ {[%emt 0:07:17]} 66. fxg4 {[%emt 0:00:02]} Bxg4 {[%emt 0:00:06]} 67. Nxc5 {[%emt 0:00:18]} Rd5 {[%emt 0:00:54]} 68. Nxa6 {[%emt 0:00:25]} Bxe5 {[%emt 0:00:13]} 69. Nb4 {[%emt 0:00:14]} Rc5 {[%emt 0:00:43]} 70. Rxe5+ {[%emt 0:00:32]} 1-0

[Event "3rd BSSZ-Aranytiz GM 2019"]
[Site "Budapest"]
[Date "2019.08.21"]
[Round "5.4"]
[White "Kozak, Adam"]
[Black "Farago, Ivan"]
[Result "1-0"]
[ECO "A05"]
[WhiteElo "2495"]
[BlackElo "2350"]
[Annotator "ChessBase"]
[PlyCount "123"]
[EventDate "2019.08.16"]
[EventType "tourn"]
[EventCountry "HUN"]
[SourceTitle "playchess.com"]
[Source "ChessBase"]
[SourceQuality "1"]
[TimeControl "40/5400+30:1800+30"]

1. Nf3 {[%emt 0:23:00]} Nf6 {[%emt 0:00:26]} 2. g3 {[%emt 0:01:16]} c5 {[%emt 0:00:21]} 3. c4 {[%emt 0:00:05]} Nc6 {[%emt 0:01:08]} 4. Nc3 {[%emt 0:01:00]} d5 {[%emt 0:02:13]} 5. d4 {[%emt 0:00:05]} e6 {[%emt 0:02:14]} 6. cxd5 {[%emt 0:00:15]} Nxd5 {[%emt 0:00:32]} 7. Bg2 {[%emt 0:00:07]} Be7 {[%emt 0:18:20]} 8. O-O {[%emt 0:01:39]} O-O {[%emt 0:00:19]} 9. Nxd5 {[%emt 0:04:27]} exd5 {[%emt 0:00:41]} 10. dxc5 {[%emt 0:06:13]} Bxc5 {[%emt 0:01:36]} 11. a3 {[%emt 0:03:39]} Bf5 {[%emt 0:02:37]} 12. b4 {[%emt 0:01:17]} Bb6 {[%emt 0:00:38]} 13. Bb2 {[%emt 0:00:21]} Be4 {[%emt 0:02:04]} 14. Qd2 {[%emt 0:01:11]} Qe7 {[%emt 0:02:48]} 15. Rfd1 {[%emt 0:06:55]} Rad8 {[%emt 0:01:35]} 16. Qg5 {[%emt 0:04:04]} f6 {[%emt 0:05:45]} 17. Qf4 {[%emt 0:02:03]} Rfe8 {[%emt 0:06:11]} 18. Rac1 {[%emt 0:00:54]} a6 {[%emt 0:02:40]} 19. Qg4 {[%emt 0:11:47]} Qf7 {[%emt 0:15:00]} 20. Qf4 {[%emt 0:06:57]} Qe7 {[%emt 0:01:04]} 21. Qd2 {[%emt 0:14:11]} Qf7 {[%emt 0:03:01]} 22. Re1 {[%emt 0:02:04]} Ne5 {[%emt 0:04:00]} 23. Bd4 {[%emt 0:04:17]} Nc4 {[%emt 0:02:35]} 24. Qc3 {[%emt 0:00:48]} Bxd4 {[%emt 0:01:00]} 25. Nxd4 {[%emt 0:00:08]} Bxg2 {[%emt 0:01:20]} 26. Kxg2 {[%emt 0:00:02]} Qg6 {[%emt 0:02:00]} 27. a4 {[%emt 0:00:44]} Qe4+ {[%emt 0:00:47]} 28. Kg1 {[%emt 0:00:02]} Rc8 {[%emt 0:01:09]} 29. Nf3 {[%emt 0:03:50]} Nd6 {[%emt 0:05:34]} 30. Qb3 {[%emt 0:00:10]} Rxc1 {[%emt 0:09:03]} 31. Rxc1 {[%emt 0:00:01]} Nc4 {[%emt 0:00:29]} 32. Rd1 {[%emt 0:00:28]} Rc8 {[%emt 0:01:34]} 33. a5 {[%emt 0:00:26]} Qxe2 {[%emt 0:01:41]} 34. Rxd5 {[%emt 0:00:02]} Qe6 {[%emt 0:00:03]} 35. Rd4 {[%emt 0:00:54]} Rc6 {[%emt 0:01:54]} 36. Rd8+ {[%emt 0:01:38]} Kf7 {[%emt 0:00:03]} 37. Qd3 {[%emt 0:00:02]} Rd6 {[%emt 0:01:57]} 38. Rxd6 {[%emt 0:00:02]} Nxd6 {[%emt 0:00:01]} 39. Qxh7 {[%emt 0:00:12]} Qd5 {[%emt 0:00:27]} 40. Qh3 {[%emt 0:00:00]} Ke7 {[%emt 0:00:00]} 41. Qg4 {[%emt 0:03:09]} g6 {[%emt 0:03:46]} 42. Nd4 {[%emt 0:04:50]} Ne4 {[%emt 0:01:26]} 43. Nc2 {[%emt 0:04:56]} Ng5 {[%emt 0:06:12]} 44. Ne1 {[%emt 0:02:56]} Qe5 {[%emt 0:08:51]} 45. Kf1 {[%emt 0:00:40]} Qd5 {[%emt 0:01:56]} 46. Kg1 {[%emt 0:01:05]} Qe5 {[%emt 0:02:42]} 47. Kf1 {[%emt 0:00:05]} Qd5 {[%emt 0:01:12]} 48. Qe2+ {[%emt 0:05:23]} Kf7 {[%emt 0:00:48]} 49. Qd3 {[%emt 0:00:58]} Qh1+ {[%emt 0:01:46]} 50. Ke2 {[%emt 0:00:03]} Qc6 {[%emt 0:00:36]} 51. h4 {[%emt 0:02:05]} Ne4 {[%emt 0:00:10]} 52. Nf3 {[%emt 0:00:31]} Nc3+ {[%emt 0:00:23]} 53. Kf1 {[%emt 0:00:23]} Nd5 {[%emt 0:04:02]} 54. Qb3 {[%emt 0:01:15]} Qe6 {[%emt 0:01:29]} 55. Kg1 {[%emt 0:02:21]} Qe4 {[%emt 0:01:10]} 56. Nd2 {[%emt 0:01:07]} Qe1+ {[%emt 0:00:26]} 57. Nf1 {[%emt 0:00:06]} Ke6 {[%emt 0:00:11]} 58. Qc2 {[%emt 0:02:35]} Qxb4 {[%emt 0:03:24]} 59. Qxg6 {[%emt 0:00:02]} Qxa5 {[%emt 0:00:05]} 60. Qg8+ {[%emt 0:00:25]} Kd6 {[%emt 0:00:08]} 61. Qf8+ {[%emt 0:00:05]} Ke6 {[%emt 0:00:04]} 62. Qc8+ {[%emt 0:01:17]} 1-0

[Event "3rd BSSZ-Aranytiz GM 2019"]
[Site "Budapest"]
[Date "2019.08.21"]
[Round "5.5"]
[White "Secheres, Adrian-Simion"]
[Black "Polyik, Peter"]
[Result "1-0"]
[ECO "B47"]
[WhiteElo "2394"]
[BlackElo "2328"]
[Annotator "NA"]
[PlyCount "89"]
[EventDate "2019.08.16"]
[EventType "tourn"]
[EventCountry "HUN"]
[SourceTitle "playchess.com"]
[Source "ChessBase"]
[SourceQuality "1"]
[TimeControl "40/5400+30:1800+30"]

1. e4 c5 {[%emt 0:03:57]} 2. Nf3 {[%emt 0:00:15]} e6 {[%emt 0:00:09]} 3. d4 {[%emt 0:00:06]} cxd4 {[%emt 0:00:05]} 4. Nxd4 {[%emt 0:00:06]} Nc6 {[%emt 0:00:06]} 5. Nc3 {[%emt 0:00:06]} Qc7 {[%emt 0:00:06]} 6. Qd3 Nf6 {[%emt 0:02:51]} 7. Ndb5 {[%emt 0:00:25]} Qb8 8. Qg3 {[%emt 0:00:07]} d6 {[%emt 0:00:25]} 9. Be3 {[%emt 0:00:11]} a6 {[%emt 0:01:00]} 10. Nd4 {[%emt 0:02:03]} Bd7 {[%emt 0:05:10]} 11. Be2 {[%emt 0:07:32]} b5 12. a3 h5 {[%emt 0:10:44]} 13. f3 {[%emt 0:04:42]} Be7 {[%emt 0:00:49]} 14. Nxc6 {[%emt 0:17:26]} Bxc6 {[%emt 0:00:06]} 15. O-O {[%emt 0:12:52]} Qb7 {[%emt 0:19:09]} 16. Rfd1 {[%emt 0:03:38]} h4 {[%emt 0:03:09]} 17. Qf2 {[%emt 0:03:45]} Rc8 {[%emt 0:02:26]} 18. Qf1 {[%emt 0:12:05]} Qb8 {[%emt 0:18:45]} 19. Bd4 {[%emt 0:00:30]} Bd8 {[%emt 0:09:49]} 20. Bd3 {[%emt 0:08:57]} Bc7 {[%emt 0:09:52]} 21. Re1 {[%emt 0:01:45]} e5 {[%emt 0:00:30]} 22. Be3 Bb6 {[%emt 0:02:11]} 23. Bxb6 {[%emt 0:01:53]} Qxb6+ 24. Qf2 {[%emt 0:00:00]} Qxf2+ {[%emt 0:04:57]} 25. Kxf2 Ke7 26. b4 {[%emt 0:04:04]} Bb7 {[%emt 0:02:16]} 27. Nd1 {[%emt 0:00:40]} Nh5 {[%emt 0:01:42]} 28. Ne3 {[%emt 0:01:22]} Nf4 {[%emt 0:00:13]} 29. Bf1 {[%emt 0:00:56]} g6 {[%emt 0:00:10]} 30. a4 {[%emt 0:00:57]} Rb8 {[%emt 0:03:49]} 31. axb5 {[%emt 0:01:07]} axb5 {[%emt 0:00:02]} 32. Ra7 {[%emt 0:01:07]} Kf6 {[%emt 0:00:39]} 33. Rd1 {[%emt 0:04:15]} Rhd8 {[%emt 0:00:05]} 34. Ra5 {[%emt 0:00:35]} Bc6 {[%emt 0:00:46]} 35. Ra6 {[%emt 0:00:01]} Rbc8 {[%emt 0:00:39]} 36. Rb6 {[%emt 0:00:47]} Ne6 {[%emt 0:00:08]} 37. Ra1 {[%emt 0:02:43]} Be8 {[%emt 0:00:43]} 38. Raa6 {[%emt 0:00:48]} Nd4 {[%emt 0:00:55]} 39. Bd3 {[%emt 0:01:26]} Ke6 {[%emt 0:00:33]} 40. Ra3 {[%emt 0:00:00]} Rc6 {[%emt 0:00:00]} 41. Rb7 {[%emt 0:09:29]} Rcc8 {[%emt 0:07:00]} 42. c3 {[%emt 0:01:41]} Nc6 {[%emt 0:00:25]} 43. Bxb5 {[%emt 0:00:57]} Ra8 {[%emt 0:01:23]} 44. Rxa8 {[%emt 0:01:33]} Rxa8 {[%emt 0:00:01]} 45. Nd5 {[%emt 0:00:10] Kxd5} 1-0

[Event "3rd BSSZ-Aranytiz GM 2019"]
[Site "Budapest"]
[Date "2019.08.22"]
[Round "6.1"]
[White "Martinovici, Ilie"]
[Black "Polyik, Peter"]
[Result "1-0"]
[ECO "D18"]
[WhiteElo "2405"]
[BlackElo "2328"]
[Annotator "NA"]
[PlyCount "67"]
[EventDate "2019.08.16"]
[EventType "tourn"]
[EventCountry "HUN"]
[SourceTitle "playchess.com"]
[Source "ChessBase"]
[SourceQuality "1"]
[TimeControl "40/5400+30:1800+30"]

1. d4 {[%emt 0:00:03]} d5 {[%emt 0:00:55]} 2. c4 {[%emt 0:00:07]} c6 {[%emt 0:00:16]} 3. Nf3 {[%emt 0:00:09]} Nf6 {[%emt 0:00:08]} 4. Nc3 {[%emt 0:00:06]} dxc4 {[%emt 0:00:07]} 5. a4 {[%emt 0:00:04]} Bf5 {[%emt 0:00:09]} 6. e3 {[%emt 0:00:08]} e6 {[%emt 0:00:10]} 7. Bxc4 {[%emt 0:00:10]} Bb4 {[%emt 0:00:12]} 8. O-O {[%emt 0:00:46]} O-O {[%emt 0:00:07]} 9. Qb3 {[%emt 0:01:01]} Qb6 {[%emt 0:03:01]} 10. Nh4 {[%emt 0:06:50]} Nbd7 {[%emt 0:01:21]} 11. Nxf5 {[%emt 0:01:20]} exf5 {[%emt 0:00:07]} 12. Qc2 {[%emt 0:01:07]} g6 {[%emt 0:00:32]} 13. Bd2 {[%emt 0:00:55]} a5 {[%emt 0:15:26]} 14. Rad1 {[%emt 0:04:17]} Qc7 {[%emt 0:05:20]} 15. Bc1 {[%emt 0:03:02]} Rad8 {[%emt 0:03:50]} 16. f3 {[%emt 0:04:49]} Nb6 {[%emt 0:22:40]} 17. Bb3 {[%emt 0:04:10]} Qe7 {[%emt 0:08:23]} 18. e4 {[%emt 0:04:06]} c5 {[%emt 0:01:47]} 19. exf5 {[%emt 0:15:56]} cxd4 {[%emt 0:00:45]} 20. Ne4 {[%emt 0:00:28]} Nxe4 {[%emt 0:08:56]} 21. fxe4 {[%emt 0:00:06]} d3 {[%emt 0:00:32]} 22. Rxd3 {[%emt 0:02:13]} Qc5+ {[%emt 0:00:07]} 23. Kh1 {[%emt 0:01:02]} Qxc2 {[%emt 0:00:22]} 24. Bxc2 {[%emt 0:00:04]} Rxd3 {[%emt 0:00:09]} 25. Bxd3 {[%emt 0:00:02]} Nxa4 {[%emt 0:00:08]} 26. Bc4 {[%emt 0:01:16]} Rc8 {[%emt 0:04:07]} 27. b3 {[%emt 0:19:59]} Nb6 {[%emt 0:00:30]} 28. fxg6 {[%emt 0:00:03]} Nxc4 {[%emt 0:00:29]} 29. gxf7+ {[%emt 0:00:07]} Kg7 {[%emt 0:00:07]} 30. bxc4 {[%emt 0:00:05]} Rxc4 {[%emt 0:11:44]} 31. e5 {[%emt 0:01:19]} Rc7 {[%emt 0:04:10]} 32. e6 {[%emt 0:00:34]} Rc6 {[%emt 0:00:05]} 33. Bd2 {[%emt 0:01:59]} Be7 {[%emt 0:03:50]} 34. Bg5 {[%emt 0:00:39]} 1-0

[Event "3rd BSSZ-Aranytiz GM 2019"]
[Site "Budapest"]
[Date "2019.08.22"]
[Round "6.2"]
[White "Farago, Ivan"]
[Black "Secheres, Adrian-Simion"]
[Result "1/2-1/2"]
[ECO "E73"]
[WhiteElo "2350"]
[BlackElo "2394"]
[Annotator "NA"]
[PlyCount "39"]
[EventDate "2019.08.16"]
[EventType "tourn"]
[EventCountry "HUN"]
[SourceTitle "playchess.com"]
[Source "ChessBase"]
[SourceQuality "1"]
[TimeControl "40/5400+30:1800+30"]

1. d4 {[%emt 0:00:02]} Nf6 {[%emt 0:02:08]} 2. c4 {[%emt 0:00:14]} g6 {[%emt 0:00:11]} 3. Nc3 {[%emt 0:00:25]} Bg7 {[%emt 0:00:12]} 4. e4 {[%emt 0:00:17]} d6 {[%emt 0:00:06]} 5. Be2 {[%emt 0:00:19]} O-O {[%emt 0:00:09]} 6. Bg5 {[%emt 0:00:11]} c5 {[%emt 0:00:16]} 7. d5 {[%emt 0:00:25]} h6 {[%emt 0:00:08]} 8. Bf4 {[%emt 0:00:25]} e6 {[%emt 0:00:12]} 9. dxe6 {[%emt 0:01:03]} Bxe6 {[%emt 0:00:06]} 10. Bxd6 {[%emt 0:00:32]} Re8 {[%emt 0:00:06]} 11. Nf3 {[%emt 0:01:19]} Qb6 {[%emt 0:00:11]} 12. Bxb8 {[%emt 0:07:05]} Raxb8 {[%emt 0:00:07]} 13. Qc2 {[%emt 0:01:17]} Nh5 {[%emt 0:00:12]} 14. g3 {[%emt 0:03:02]} Bh3 {[%emt 0:00:29]} 15. O-O-O {[%emt 0:01:07]} Bxc3 {[%emt 0:15:13]} 16. Qxc3 {[%emt 0:02:52]} Rxe4 {[%emt 0:01:42]} 17. Rhe1 {[%emt 0:01:25]} Rbe8 {[%emt 0:09:35]} 18. Bd3 {[%emt 0:01:27]} Rxe1 {[%emt 0:03:34]} 19. Rxe1 {[%emt 0:00:24]} Rd8 {[%emt 0:11:07]} 20. Ne5 {[%emt 0:09:49]} 1/2-1/2

[Event "3rd BSSZ-Aranytiz GM 2019"]
[Site "Budapest"]
[Date "2019.08.22"]
[Round "6.3"]
[White "Akshat, Khamparia"]
[Black "Kozak, Adam"]
[Result "0-1"]
[ECO "E32"]
[WhiteElo "2393"]
[BlackElo "2495"]
[Annotator "ChessBase"]
[PlyCount "86"]
[EventDate "2019.08.16"]
[EventType "tourn"]
[EventCountry "HUN"]
[SourceTitle "playchess.com"]
[Source "ChessBase"]
[SourceQuality "1"]
[TimeControl "40/5400+30:1800+30"]

1. d4 {[%emt 0:00:02]} Nf6 {[%emt 0:05:24]} 2. c4 {[%emt 0:00:10]} e6 {[%emt 0:03:28]} 3. Nc3 {[%emt 0:00:06]} Bb4 {[%emt 0:00:05]} 4. Qc2 {[%emt 0:00:04]} b6 {[%emt 0:00:05]} 5. a3 {[%emt 0:00:03]} Bxc3+ {[%emt 0:00:06]} 6. Qxc3 {[%emt 0:00:04]} Bb7 {[%emt 0:00:05]} 7. Nf3 {[%emt 0:00:05]} O-O {[%emt 0:03:38]} 8. g3 {[%emt 0:00:04]} d5 {[%emt 0:01:54]} 9. Bg2 {[%emt 0:01:56]} dxc4 {[%emt 0:00:13]} 10. Qxc4 {[%emt 0:01:01]} Nbd7 {[%emt 0:00:31]} 11. O-O {[%emt 0:01:36]} Bd5 {[%emt 0:00:53]} 12. Qa4 {[%emt 0:05:20]} c5 {[%emt 0:00:36]} 13. Be3 {[%emt 0:08:04]} c4 {[%emt 0:01:55]} 14. Bh3 {[%emt 0:08:35]} a6 {[%emt 0:05:57]} 15. Nd2 {[%emt 0:02:35]} b5 {[%emt 0:00:11]} 16. Qc2 {[%emt 0:00:06]} Re8 {[%emt 0:05:21]} 17. Rfe1 {[%emt 0:10:28]} Qb6 {[%emt 0:04:36]} 18. f3 {[%emt 0:03:28]} e5 {[%emt 0:01:35]} 19. Qc3 {[%emt 0:00:19]} e4 {[%emt 0:00:15]} 20. fxe4 {[%emt 0:01:26]} Bxe4 {[%emt 0:01:59]} 21. d5 {[%emt 0:01:24]} Qb7 {[%emt 0:08:56]} 22. Nxe4 {[%emt 0:00:44]} Nxe4 {[%emt 0:00:38]} 23. Qd4 {[%emt 0:00:15]} Ndf6 {[%emt 0:11:43]} 24. d6 {[%emt 0:09:49]} Nxd6 {[%emt 0:00:25]} 25. Bf4 {[%emt 0:01:03]} Nde4 {[%emt 0:00:59]} 26. Rad1 {[%emt 0:00:08]} Qe7 {[%emt 0:04:27]} 27. Bg2 {[%emt 0:01:29]} h6 {[%emt 0:02:53]} 28. Bd6 {[%emt 0:01:42]} Nxd6 {[%emt 0:07:00]} 29. Bxa8 {[%emt 0:00:29]} Nf5 {[%emt 0:00:47]} 30. Qf2 {[%emt 0:01:32]} Ne3 {[%emt 0:00:23]} 31. Bf3 {[%emt 0:00:32]} Nxd1 {[%emt 0:00:29]} 32. Rxd1 {[%emt 0:00:08]} Ne4 {[%emt 0:08:17]} 33. Qe3 {[%emt 0:03:04]} Qc5 {[%emt 0:03:05]} 34. Rd4 {[%emt 0:00:30]} Nf6 {[%emt 0:00:53]} 35. Qd2 {[%emt 0:01:06]} a5 {[%emt 0:06:22]} 36. e3 {[%emt 0:00:40]} b4 {[%emt 0:00:19]} 37. axb4 {[%emt 0:00:31]} axb4 {[%emt 0:00:06]} 38. Kf2 {[%emt 0:00:22]} c3 {[%emt 0:01:26]} 39. Qc2 {[%emt 0:00:12]} g6 {[%emt 0:01:59]} 40. bxc3 {[%emt 0:00:00]} bxc3 {[%emt 0:00:00]} 41. Rd3 {[%emt 0:01:07]} Rc8 {[%emt 0:02:31]} 42. Kg2 {[%emt 0:00:13]} Qf5 {[%emt 0:02:30]} 43. h3 {[%emt 0:01:02]} Qxd3 {[%emt 0:00:35]} 0-1

[Event "3rd BSSZ-Aranytiz GM 2019"]
[Site "Budapest"]
[Date "2019.08.22"]
[Round "6.4"]
[White "Csonka, Balazs"]
[Black "Aczel, Gergely"]
[Result "1/2-1/2"]
[ECO "B52"]
[WhiteElo "2472"]
[BlackElo "2538"]
[Annotator "ChessBase"]
[PlyCount "93"]
[EventDate "2019.08.16"]
[EventType "tourn"]
[EventCountry "HUN"]
[SourceTitle "playchess.com"]
[Source "ChessBase"]
[SourceQuality "1"]
[TimeControl "40/5400+30:1800+30"]

1. e4 {[%emt 0:00:03]} c5 {[%emt 0:00:04]} 2. Nf3 {[%emt 0:00:07]} d6 {[%emt 0:00:10]} 3. Bb5+ {[%emt 0:00:06]} Bd7 {[%emt 0:00:03]} 4. Bxd7+ {[%emt 0:00:08]} Qxd7 {[%emt 0:00:04]} 5. c4 {[%emt 0:00:13]} e5 {[%emt 0:00:12]} 6. Nc3 {[%emt 0:00:32]} Nc6 {[%emt 0:00:02]} 7. d3 {[%emt 0:00:41]} g6 {[%emt 0:00:07]} 8. a3 {[%emt 0:01:20]} Bg7 {[%emt 0:00:08]} 9. Rb1 {[%emt 0:00:50]} Nge7 {[%emt 0:00:08]} 10. b4 {[%emt 0:00:40]} O-O {[%emt 0:00:05]} 11. O-O {[%emt 0:00:11]} f5 {[%emt 0:00:29]} 12. Bg5 {[%emt 0:11:26]} Rae8 {[%emt 0:02:32]} 13. Bxe7 {[%emt 0:06:31]} Nxe7 {[%emt 0:00:07]} 14. Qa4 {[%emt 0:15:36]} Qxa4 {[%emt 0:11:44]} 15. Nxa4 {[%emt 0:00:11]} b6 {[%emt 0:00:08]} 16. b5 {[%emt 0:09:07]} Bf6 {[%emt 0:20:56]} 17. Nc3 {[%emt 0:02:43]} Ra8 {[%emt 0:06:32]} 18. Rb3 {[%emt 0:19:37]} f4 {[%emt 0:01:39]} 19. a4 {[%emt 0:15:12]} a5 {[%emt 0:00:49]} 20. bxa6 {[%emt 0:03:59]} Rxa6 {[%emt 0:00:08]} 21. Rfb1 {[%emt 0:00:15]} Nc8 {[%emt 0:00:13]} 22. g4 {[%emt 0:04:35]} Bd8 {[%emt 0:04:19]} 23. Kg2 {[%emt 0:01:33]} Kf7 {[%emt 0:04:43]} 24. h4 {[%emt 0:01:10]} h6 {[%emt 0:08:34]} 25. Rh1 {[%emt 0:00:41]} Ke6 {[%emt 0:01:32]} 26. h5 {[%emt 0:02:19]} g5 {[%emt 0:00:02]} 27. Ne1 {[%emt 0:00:57]} Rf7 {[%emt 0:00:17]} 28. f3 {[%emt 0:00:49]} Rfa7 {[%emt 0:00:05]} 29. Nc2 {[%emt 0:00:54]} Ne7 {[%emt 0:00:27]} 30. Ra1 {[%emt 0:00:46]} Nc6 {[%emt 0:00:26]} 31. Kf2 {[%emt 0:00:31]} Nd4 {[%emt 0:03:26]} 32. Rb2 {[%emt 0:00:57]} Nxc2 {[%emt 0:20:44]} 33. Rxc2 {[%emt 0:00:06]} Kd7 {[%emt 0:00:07]} 34. Rca2 {[%emt 0:00:22]} Kc6 {[%emt 0:00:19]} 35. Ke2 {[%emt 0:00:08]} Ra8 {[%emt 0:00:15]} 36. Kd1 {[%emt 0:00:32]} R8a7 {[%emt 0:00:05]} 37. Kc2 {[%emt 0:00:08]} Ra8 {[%emt 0:00:29]} 38. Rb1 {[%emt 0:00:21]} R8a7 {[%emt 0:00:16]} 39. Rb3 {[%emt 0:01:08]} Ra8 {[%emt 0:00:11]} 40. Rb5 {[%emt 0:00:00]} R8a7 {[%emt 0:00:00]} 41. Kb3 {[%emt 0:17:04]} Ra8 {[%emt 0:02:16]} 42. Nd5 {[%emt 0:01:19]} Ra5 {[%emt 0:02:49]} 43. Rxa5 {[%emt 0:00:20]} bxa5 {[%emt 0:01:23]} 44. Rb2 {[%emt 0:05:18]} Rb8+ {[%emt 0:00:05]} 45. Kc2 {[%emt 0:00:06]} Rxb2+ {[%emt 0:00:39]} 46. Kxb2 {[%emt 0:00:06]} Kb7 {[%emt 0:00:15]} 47. Nb6 {[%emt 0:00:19]} 1/2-1/2